bitfinex/quotes_BTCUSD_20241014
["timestamp","ask_amount","ask_price","bid_price","bid_amount"]
[1728918533033,0.1514,66050.0,66048.0,0.1848]
[1728918533320,0.16554762,66049.0,66048.0,0.1848]
[1728918533531,0.151402,66049.0,66048.0,0.1848]
[1728918533973,0.17686281,66049.0,66048.0,0.1848]
[1728918535090,0.02546081,66049.0,66048.0,0.1848]
[1728918535314,0.15352847,66052.0,66048.0,0.1848]
[1728918535537,0.151402,66049.0,66048.0,0.1848]
[1728918535743,0.1514,66050.0,66048.0,0.1848]
[1728918535954,0.001,66049.0,66048.0,0.185625]
[1728918536404,0.152402,66049.0,66048.0,0.185625]
[1728918536877,0.151402,66049.0,66048.0,0.185625]
[1728918537157,0.151398,66051.0,66048.0,0.185625]
[1728918537376,0.16493304,66052.0,66048.0,0.185625]
[1728918537377,0.17686696,66050.0,66048.0,0.185625]
[1728918537604,0.151401,66050.0,66048.0,0.185625]
[1728918537818,0.302797,66051.0,66048.0,0.185625]
[1728918538052,0.16493304,66052.0,66048.0,0.185625]
[1728918538293,0.152402,66049.0,66048.0,0.185625]
[1728918538732,0.151402,66049.0,66048.0,0.185625]
[1728918539888,0.001,66049.0,66048.0,0.185625]
[1728918540101,0.152402,66049.0,66048.0,0.185625]
[1728918540320,0.02396745,66049.0,66048.0,0.185625]
[1728918541218,0.18952029,66049.0,66048.0,0.185625]
[1728918541450,0.35437204,66049.0,66048.0,0.185625]
[1728918542365,0.35417204,66049.0,66048.0,0.185625]
[1728918542602,0.07189651,66049.0,66048.0,0.185625]
[1728918542837,0.02376745,66049.0,66048.0,0.185625]
[1728918543098,0.02376745,66049.0,66048.0,0.59679046]
[1728918543343,0.02376745,66049.0,66048.0,0.60179046]
[1728918544726,0.02296745,66049.0,66048.0,0.60179046]
[1728918545010,0.15303,66059.0,66053.0,0.151392]
[1728918545253,0.22727445,66057.0,66052.0,0.302791]
[1728918545489,0.15303,66059.0,66054.0,0.15139]
[1728918545719,0.151385,66057.0,66052.0,0.151393]
[1728918545956,0.151385,66057.0,66051.0,0.151397]
[1728918546236,0.02548673,66056.0,66051.0,0.151397]
[1728918546461,0.02548673,66055.0,66052.0,0.151395]
[1728918546679,0.02548673,66054.0,66052.0,0.001]
[1728918546919,0.01415926,66053.0,66052.0,0.001]
[1728918547133,0.16555181,66053.0,66052.0,0.001]
[1728918547612,0.17687865,66053.0,66052.0,0.001]
[1728918547847,0.35985921,66053.0,66052.0,0.001]
[1728918548088,0.21979391,66053.0,66049.0,0.22727445]
[1728918548300,0.151399,66051.0,66049.0,0.22727445]
[1728918548540,0.16768728,66050.0,66048.0,0.685625]
[1728918548777,0.01415881,66049.0,66048.0,0.685625]
[1728918548994,0.33041698,66049.0,66048.0,0.685625]
[1728918549456,0.37119647,66049.0,66048.0,0.685625]
[1728918549907,0.37119647,66049.0,66048.0,0.694625]
[1728918550904,0.37934849,66049.0,66048.0,0.694625]
[1728918551243,0.37934849,66049.0,66048.0,0.697625]
[1728918551244,0.38034849,66049.0,66048.0,0.697625]
[1728918551463,0.38034849,66049.0,66048.0,0.688625]
[1728918551902,0.38134849,66049.0,66048.0,0.698625]
[1728918552336,0.34453441,66049.0,66048.0,0.698625]
[1728918552557,0.34453441,66049.0,66048.0,0.513825]
[1728918552558,0.44453441,66049.0,66048.0,0.513825]
[1728918552769,0.59614225,66049.0,66048.0,0.513825]
[1728918552994,0.60614225,66049.0,66048.0,0.513825]
[1728918553238,0.60614225,66049.0,66048.0,0.503825]
[1728918553239,0.60514225,66049.0,66048.0,0.503825]
[1728918553607,0.60714225,66049.0,66048.0,0.503825]
[1728918553808,1.75383425,66049.0,66048.0,0.503825]
[1728918554020,1.71480029,66049.0,66048.0,0.503825]
[1728918554370,1.26665577,66049.0,66048.0,0.503825]
[1728918554574,1.26665577,66049.0,66048.0,0.500825]
[1728918554575,1.2747661,66049.0,66048.0,0.500825]
[1728918554775,1.45125343,66049.0,66048.0,0.500825]
[1728918554990,1.49754431,66049.0,66048.0,0.500825]
[1728918555219,1.49754431,66049.0,66046.0,0.000825]
[1728918555220,0.367407,66047.0,66046.0,0.000825]
[1728918555436,2.52922247,66047.0,66046.0,0.000825]
[1728918555972,2.52922247,66047.0,66038.0,0.22727445]
[1728918555973,0.367425,66039.0,66038.0,0.22727445]
[1728918556207,0.015,66032.0,66031.0,0.22727445]
[1728918556413,0.327457,66025.0,66017.0,0.22727445]
[1728918556627,0.251464,66022.0,66017.0,0.22727445]
[1728918556832,0.46487243,66022.0,66017.0,0.22727445]
[1728918557008,0.48121998,66022.0,66017.0,0.22727445]
[1728918557206,0.48880599,66022.0,66017.0,0.22727445]
[1728918557409,0.48121998,66022.0,66006.0,0.22727445]
[1728918557617,0.49121998,66022.0,66006.0,0.22727445]
[1728918557827,0.50937607,66022.0,66013.0,0.22727445]
[1728918558270,0.47987243,66022.0,66013.0,0.22727445]
[1728918558496,0.49118483,66022.0,66013.0,0.22727445]
[1728918558711,0.49218483,66022.0,66013.0,0.22727445]
[1728918558915,0.50051536,66022.0,66013.0,0.22727445]
[1728918559116,0.54190634,66022.0,66013.0,0.22727445]
[1728918560378,0.5238065,66022.0,66013.0,0.22727445]
[1728918562106,0.51226707,66022.0,66013.0,0.22727445]
[1728918562327,0.48689196,66022.0,66013.0,0.22727445]
[1728918562542,0.52353909,66022.0,66013.0,0.22727445]
[1728918562778,1.59367945,66022.0,66014.0,0.22727445]
[1728918563209,0.97009445,66022.0,66014.0,0.22727445]
[1728918563434,1.84843545,66022.0,66014.0,0.22727445]
[1728918563661,1.49521643,66022.0,66014.0,0.22727445]
[1728918563864,1.06032394,66022.0,66014.0,0.22727445]
[1728918564335,1.25293345,66022.0,66014.0,0.22727445]
[1728918564545,1.26493345,66022.0,66021.0,0.001826]
[1728918564992,1.23893345,66022.0,66021.0,0.000826]
[1728918565222,1.24652058,66022.0,66021.0,0.000826]
[1728918565452,1.27252058,66022.0,66021.0,0.001826]
[1728918566918,1.27052058,66022.0,66021.0,0.001826]
[1728918567129,1.29396385,66022.0,66021.0,0.001826]
[1728918567339,1.27252058,66022.0,66021.0,0.001826]
[1728918567771,1.27052058,66022.0,66021.0,0.001826]
[1728918568462,1.29595819,66022.0,66021.0,0.001826]
[1728918568890,1.27252058,66022.0,66021.0,0.001826]
[1728918569090,1.09391107,66022.0,66021.0,0.001826]
[1728918570384,1.29395571,66022.0,66021.0,0.001826]
[1728918570553,1.27052058,66022.0,66021.0,0.001826]
[1728918570755,1.26293345,66022.0,66021.0,0.001826]
[1728918571031,1.08632394,66022.0,66021.0,0.001826]
[1728918571292,1.26293345,66022.0,66021.0,0.001826]
[1728918571517,0.87453794,66022.0,66021.0,0.001826]
[1728918571790,0.72018494,66022.0,66021.0,0.001826]
[1728918572985,0.74318494,66022.0,66021.0,0.001826]
[1728918573243,0.74318494,66022.0,66021.0,0.00200214]
[1728918573470,0.73118494,66022.0,66021.0,0.00100214]
[1728918573943,0.69780391,66022.0,66021.0,0.00200214]
[1728918574180,0.70148785,66022.0,66021.0,0.00200214]
[1728918574414,0.55020283,66022.0,66021.0,0.00200214]
[1728918574664,0.72681234,66022.0,66021.0,0.00200214]
[1728918574906,0.21110852,66022.0,66021.0,0.27130214]
[1728918575188,0.03506925,66022.0,66021.0,0.27130214]
[1728918575440,0.021,66022.0,66021.0,0.42276814]
[1728918576434,0.22727445,66035.0,66025.0,0.1903]
[1728918576645,0.22727445,66028.0,66025.0,0.1903]
[1728918576879,0.151439,66033.0,66025.0,0.1903]
[1728918577112,0.01409378,66032.0,66026.0,0.30291]
[1728918577350,0.151422,66041.0,66033.0,0.151439]
[1728918577580,0.151422,66041.0,66030.0,0.1975]
[1728918577581,0.22727445,66036.0,66030.0,0.1975]
[1728918577801,0.01710214,66035.0,66032.0,0.15144]
[1728918578093,0.01410214,66034.0,66030.0,0.1975]
[1728918578319,0.01410214,66033.0,66030.0,0.1975]
[1728918578522,0.01410214,66032.0,66031.0,0.151442]
[1728918579464,0.01410214,66032.0,66030.0,0.348945]
[1728918579680,0.01410214,66031.0,66030.0,0.348945]
[1728918580368,0.01410214,66031.0,66030.0,0.1975]
[1728918580835,0.01410214,66031.0,66030.0,0.2035]
[1728918581055,0.16654614,66031.0,66030.0,0.2135]
[1728918581296,0.16654614,66031.0,66030.0,0.2075]
[1728918581525,0.152444,66031.0,66030.0,0.2175]
[1728918581758,0.16657439,66031.0,66030.0,0.2175]
[1728918582637,0.32010286,66031.0,66030.0,0.2175]
[1728918583325,0.3540117,66031.0,66030.0,0.2175]
[1728918583545,0.33140542,66031.0,66030.0,0.2175]
[1728918583749,0.35400915,66031.0,66030.0,0.2175]
[1728918583987,0.35400931,66031.0,66030.0,0.2175]
[1728918584195,0.47209412,66031.0,66030.0,0.02]
[1728918585081,0.47209412,66031.0,66030.0,0.01]
[1728918585082,0.50009412,66031.0,66030.0,0.01]
[1728918585301,0.128,66030.0,66021.0,0.00100214]
[1728918585549,0.151464,66022.0,66021.0,0.00100214]
[1728918585754,0.28820669,66022.0,66021.0,0.00100214]
[1728918586208,0.29951213,66022.0,66021.0,0.00100214]
[1728918587299,0.29951213,66022.0,66021.0,0.00600214]
[1728918587531,0.29951196,66022.0,66021.0,0.00600214]
[1728918588837,0.30051196,66022.0,66021.0,0.01200214]
[1728918589040,0.04904796,66022.0,66021.0,0.01200214]
[1728918589258,0.04904796,66022.0,66021.0,0.16346814]
[1728918589479,0.0151318,66022.0,66021.0,0.16597934]
[1728918590145,0.01512979,66022.0,66021.0,0.16597934]
[1728918590864,0.01512979,66022.0,66021.0,0.24617934]
[1728918591069,0.001,66022.0,66021.0,0.24617934]
[1728918591699,0.001,66022.0,66021.0,0.24631506]
[1728918592092,0.001,66022.0,66021.0,0.09484906]
[1728918592300,0.001,66022.0,66021.0,0.24631506]
[1728918594023,0.01512945,66022.0,66021.0,0.24631506]
[1728918594455,0.001,66022.0,66021.0,0.24631506]
[1728918594690,0.002652,66022.0,66021.0,0.24631506]
[1728918595356,0.01678359,66022.0,66021.0,0.24631506]
[1728918596205,0.002652,66022.0,66021.0,0.09484906]
[1728918596416,0.002652,66022.0,66021.0,0.24631506]
[1728918597547,0.002652,66022.0,66021.0,0.44631506]
[1728918597789,0.002652,66022.0,66021.0,0.44366814]
[1728918598471,0.001652,66022.0,66021.0,0.42766814]
[1728918598705,0.001652,66022.0,66021.0,0.43266814]
[1728918598911,0.001652,66022.0,66021.0,0.43466814]
[1728918599135,0.001652,66022.0,66021.0,0.43766814]
[1728918599576,0.001652,66022.0,66021.0,0.43266814]
[1728918600006,0.001652,66022.0,66021.0,0.44666814]
[1728918600427,0.002652,66022.0,66021.0,0.46066814]
[1728918601061,0.001652,66022.0,66021.0,0.44666814]
[1728918601495,0.001652,66022.0,66021.0,0.46266814]
[1728918601941,0.001652,66022.0,66021.0,0.46066814]
[1728918602401,0.001652,66022.0,66021.0,0.44666814]
[1728918602608,0.001652,66022.0,66021.0,0.46066814]
[1728918603257,0.001652,66022.0,66021.0,0.43266814]
[1728918603470,0.001652,66022.0,66021.0,0.44666814]
[1728918603970,0.001652,66032.0,66030.0,0.005]
[1728918604194,0.001652,66032.0,66031.0,0.413644]
[1728918604456,0.001652,66032.0,66031.0,0.420644]
[1728918604696,0.01582377,66032.0,66031.0,0.418644]
[1728918604935,0.01582377,66032.0,66031.0,0.420644]
[1728918605147,0.01582377,66032.0,66031.0,0.418644]
[1728918605373,0.01682377,66032.0,66031.0,0.59499697]
[1728918605611,0.01682377,66032.0,66031.0,0.58999697]
[1728918606029,0.01682377,66032.0,66031.0,0.82227142]
[1728918606291,0.002652,66032.0,66031.0,0.60699697]
[1728918606514,0.001652,66032.0,66031.0,0.60699697]
[1728918606736,0.001652,66032.0,66031.0,0.61299697]
[1728918606978,0.002652,66032.0,66031.0,0.62099697]
[1728918607197,0.001652,66032.0,66031.0,0.60699697]
[1728918607422,0.001652,66032.0,66031.0,0.61899697]
[1728918607646,0.002652,66032.0,66031.0,0.63299697]
[1728918609829,0.002652,66032.0,66031.0,0.63499697]
[1728918610548,0.002652,66032.0,66031.0,0.63299697]
[1728918610755,0.002652,66032.0,66031.0,0.63499697]
[1728918611219,0.002652,66032.0,66031.0,0.63299697]
[1728918612626,0.002652,66032.0,66031.0,0.62299697]
[1728918612846,0.002652,66032.0,66031.0,0.441644]
[1728918613060,0.154093,66032.0,66031.0,0.2105]
[1728918613246,0.35576679,66032.0,66031.0,0.028]
[1728918613736,0.37389491,66032.0,66031.0,0.028]
[1728918614137,0.22245391,66032.0,66031.0,0.028]
[1728918614147,0.35576679,66032.0,66031.0,0.014]
[1728918614350,0.35576679,66032.0,66031.0,0.008]
[1728918614351,0.35476679,66032.0,66031.0,0.008]
[1728918614573,0.37289603,66032.0,66031.0,0.008]
[1728918614800,0.35476679,66032.0,66031.0,0.015]
[1728918615005,0.37289608,66032.0,66031.0,0.015]
[1728918617949,0.47289608,66032.0,66031.0,0.015]
[1728918618182,0.48047974,66032.0,66031.0,0.015]
[1728918619027,0.48995965,66032.0,66031.0,0.015]
[1728918619919,0.45295317,66032.0,66031.0,0.015]
[1728918620137,0.49001853,66032.0,66031.0,0.015]
[1728918620339,0.49001776,66032.0,66031.0,0.015]
[1728918620603,0.50815993,66032.0,66031.0,0.015]
[1728918620831,0.58785993,66032.0,66031.0,0.015]
[1728918621075,0.56971754,66032.0,66031.0,0.015]
[1728918621310,0.72373753,66032.0,66031.0,0.015]
[1728918621518,0.70861754,66032.0,66031.0,0.015]
[1728918622430,0.70861754,66032.0,66031.0,0.007]
[1728918622665,0.70861754,66032.0,66031.0,0.012]
[1728918622923,0.71861754,66032.0,66031.0,0.005]
[1728918623345,0.279444,66031.0,66030.0,0.5]
[1728918623557,0.69281629,66031.0,66030.0,0.5]
[1728918624447,0.70281629,66031.0,66030.0,0.5]
[1728918624910,0.70681629,66031.0,66030.0,0.5]
[1728918625135,0.72192242,66031.0,66030.0,0.5]
[1728918625367,0.151464,66022.0,66021.0,0.00100214]
[1728918625576,0.75377254,66022.0,66021.0,0.00100214]
[1728918625784,0.77083629,66022.0,66021.0,0.00100214]
[1728918626000,0.79443587,66022.0,66021.0,0.00100214]
[1728918626234,0.77083629,66022.0,66021.0,0.00100214]
[1728918627337,0.77183629,66022.0,66021.0,0.00100214]
[1728918627572,0.74157119,66022.0,66021.0,0.00100214]
[1728918627827,0.95559589,66022.0,66021.0,0.00100214]
[1728918628059,0.95559589,66022.0,66021.0,0.00200214]
[1728918628060,1.50709772,66022.0,66021.0,0.00200214]
[1728918628307,1.25338772,66022.0,66021.0,0.00200214]
[1728918628549,0.88815172,66022.0,66021.0,0.00200214]
[1728918628780,0.88815172,66022.0,66021.0,0.00100214]
[1728918629539,0.90323334,66022.0,66021.0,0.00100214]
[1728918629782,0.91049106,66022.0,66021.0,0.00100214]
[1728918630265,0.52136839,66022.0,66021.0,0.00300214]
[1728918630500,0.39021827,66022.0,66021.0,0.00300214]
[1728918630729,0.36610523,66022.0,66021.0,0.00200214]
[1728918630972,0.37210523,66022.0,66021.0,0.00300214]
[1728918631210,0.37210523,66022.0,66021.0,0.15446814]
[1728918631211,0.04447146,66022.0,66021.0,0.15446814]
[1728918631440,0.302895,66030.0,66021.0,0.15446814]
[1728918631441,0.151451,66028.0,66021.0,0.15246814]
[1728918631668,0.15352847,66027.0,66021.0,0.15246814]
[1728918631915,0.15352847,66027.0,66021.0,0.00200214]
[1728918632155,0.01413344,66026.0,66021.0,0.15346814]
[1728918632433,0.16766245,66025.0,66021.0,0.00200214]
[1728918632665,0.001652,66032.0,66029.0,0.151447]
[1728918632920,0.001652,66032.0,66030.0,0.1957]
[1728918632921,0.04857304,66031.0,66030.0,0.1957]
[1728918633399,0.04857304,66031.0,66030.0,0.347146]
[1728918633400,0.02543977,66031.0,66030.0,0.347146]
[1728918633615,0.001652,66032.0,66031.0,0.151444]
[1728918633858,0.001652,66032.0,66031.0,0.33289175]
[1728918634093,0.007652,66032.0,66031.0,0.33289175]
[1728918634333,0.001652,66032.0,66031.0,0.33289175]
[1728918635019,0.001652,66032.0,66031.0,0.34189175]
[1728918635443,0.001652,66032.0,66031.0,0.165444]
[1728918635866,0.001652,66032.0,66031.0,0.009]
[1728918636514,0.002652,66032.0,66031.0,0.017]
[1728918638368,0.002652,66032.0,66031.0,0.40071845]
[1728918638602,0.002652,66032.0,66031.0,0.446544]
[1728918638818,0.002652,66032.0,66031.0,0.60207247]
[1728918639026,0.00165,66046.0,66045.0,0.426511]
[1728918639239,0.02709452,66046.0,66045.0,0.426511]
[1728918639506,0.00165,66046.0,66045.0,0.2751]
[1728918639712,0.01578482,66046.0,66045.0,0.1987]
[1728918639936,0.32072229,66046.0,66045.0,0.1987]
[1728918640180,0.30658747,66046.0,66045.0,0.1987]
[1728918640385,0.30658747,66046.0,66045.0,0.6987]
[1728918640615,0.30658747,66046.0,66045.0,0.5]
[1728918640858,0.30658747,66046.0,66045.0,0.503]
[1728918641102,0.32072006,66046.0,66045.0,0.503]
[1728918641323,0.32072006,66046.0,66045.0,0.507]
[1728918641748,0.35463876,66046.0,66045.0,0.507]
[1728918642400,0.3320266,66046.0,66045.0,0.507]
[1728918642608,0.35464162,66046.0,66045.0,0.507]
[1728918642831,0.3320266,66046.0,66045.0,0.507]
[1728918643900,0.31789401,66046.0,66045.0,0.507]
[1728918644125,0.32071941,66046.0,66045.0,0.507]
[1728918644359,0.33202496,66046.0,66045.0,0.507]
[1728918644657,0.33202496,66046.0,66045.0,0.933411]
[1728918644658,0.02708749,66046.0,66045.0,0.933411]
[1728918644893,0.00165,66046.0,66045.0,0.948411]
[1728918645571,0.00165,66046.0,66045.0,0.946411]
[1728918645782,0.00165,66046.0,66045.0,0.959411]
[1728918646007,0.00165,66046.0,66045.0,0.957411]
[1728918646671,0.00165,66046.0,66045.0,0.954411]
[1728918646912,0.00165,66046.0,66045.0,0.968411]
[1728918647148,0.00165,66046.0,66045.0,0.966411]
[1728918647376,0.00165,66046.0,66045.0,0.968411]
[1728918648114,0.00165,66046.0,66045.0,0.966411]
[1728918648352,0.00165,66046.0,66045.0,0.968411]
[1728918649566,0.00165,66046.0,66045.0,0.966411]
[1728918649828,0.00165,66049.0,66045.0,0.966411]
[1728918649829,0.00165,66049.0,66048.0,0.017]
[1728918650077,0.00165,66049.0,66048.0,0.77858122]
[1728918651250,0.00165,66049.0,66048.0,0.79758122]
[1728918651508,0.00165,66059.0,66058.0,0.156382]
[1728918653655,0.00165,66059.0,66058.0,0.158382]
[1728918653893,0.00165,66059.0,66058.0,0.666382]
[1728918654115,0.00165,66059.0,66058.0,0.864982]
[1728918654341,0.00165,66059.0,66058.0,0.873982]
[1728918655091,0.00165,66059.0,66058.0,0.875982]
[1728918655347,0.00165,66059.0,66058.0,0.873982]
[1728918655569,0.00165,66059.0,66058.0,1.05042975]
[1728918656521,0.00165,66059.0,66058.0,0.873982]
[1728918656743,0.00165,66059.0,66058.0,0.863982]
[1728918656966,0.00165,66059.0,66058.0,0.873982]
[1728918659391,0.00165,66059.0,66058.0,0.875982]
[1728918659648,0.00165,66059.0,66058.0,1.28205822]
[1728918659930,0.00165,66059.0,66058.0,1.80561047]
[1728918660943,0.00165,66059.0,66058.0,1.79661047]
[1728918661538,0.00165,66059.0,66058.0,1.81061047]
[1728918662036,0.00165,66059.0,66058.0,1.11061047]
[1728918662264,0.00165,66059.0,66058.0,1.10061047]
[1728918662469,0.00165,66059.0,66058.0,1.08661047]
[1728918662667,0.00165,66059.0,66058.0,1.10061047]
[1728918663071,0.00165,66059.0,66058.0,1.08661047]
[1728918663477,0.00165,66059.0,66058.0,0.947082]
[1728918663921,0.00165,66059.0,66058.0,0.961082]
[1728918664536,0.00165,66059.0,66058.0,0.947082]
[1728918664742,0.00165,66059.0,66058.0,1.08661047]
[1728918664926,0.00165,66059.0,66058.0,1.08861047]
[1728918665111,0.00165,66059.0,66058.0,1.08661047]
[1728918665342,0.00165,66059.0,66058.0,1.10061047]
[1728918666088,0.00165,66059.0,66058.0,0.947082]
[1728918666368,0.00165,66059.0,66058.0,0.961082]
[1728918667144,0.00165,66059.0,66058.0,0.947082]
[1728918667560,0.00165,66059.0,66058.0,0.961082]
[1728918667768,0.00165,66059.0,66058.0,1.661082]
[1728918667944,0.00165,66059.0,66058.0,1.647082]
[1728918669024,0.00165,66059.0,66058.0,1.661082]
[1728918670535,0.00165,66059.0,66058.0,1.582982]
[1728918670777,0.00165,66059.0,66058.0,1.567982]
[1728918671017,0.02711102,66059.0,66058.0,1.228]
[1728918671523,0.0678544,66059.0,66058.0,1.228]
[1728918671760,0.0678544,66059.0,66058.0,0.679382]
[1728918672225,0.06786297,66059.0,66058.0,0.665382]
[1728918672932,0.06786297,66059.0,66058.0,0.651382]
[1728918673162,0.06786297,66059.0,66058.0,0.661382]
[1728918673394,0.06786297,66059.0,66058.0,0.670382]
[1728918673614,0.06786297,66059.0,66058.0,0.660382]
[1728918674072,0.06786297,66059.0,66058.0,0.673382]
[1728918674526,0.07544257,66059.0,66058.0,0.673382]
[1728918674736,0.07544257,66059.0,66058.0,0.664382]
[1728918674939,0.07544257,66059.0,66058.0,0.676382]
[1728918676893,0.30452157,66059.0,66058.0,0.525]
[1728918677117,0.63465896,66059.0,66058.0,0.525]
[1728918677758,0.66510902,66059.0,66058.0,0.525]
[1728918678226,0.65699423,66059.0,66058.0,0.513]
[1728918678433,0.63465896,66059.0,66058.0,0.5]
[1728918678887,0.66070522,66059.0,66058.0,0.502]
[1728918679127,0.7346133,66059.0,66058.0,0.502]
[1728918680850,0.40678655,66059.0,66058.0,0.502]
[1728918681055,0.40678655,66059.0,66058.0,0.5]
[1728918681056,0.42189354,66059.0,66058.0,0.5]
[1728918681261,0.40678655,66059.0,66058.0,0.5]
[1728918683039,0.07555808,66059.0,66058.0,0.651382]
[1728918683248,0.06797712,66059.0,66058.0,0.651382]
[1728918683450,0.06797712,66059.0,66058.0,0.730482]
[1728918683678,0.02716043,66059.0,66058.0,0.735482]
[1728918683910,0.00165,66059.0,66058.0,0.745482]
[1728918684570,0.00165,66059.0,66058.0,0.79055596]
[1728918684791,0.00165,66059.0,66058.0,0.97545596]
[1728918685220,0.00165,66059.0,66058.0,0.946382]
[1728918685425,0.00165,66059.0,66058.0,0.940382]
[1728918685869,0.00165,66059.0,66058.0,0.949382]
[1728918686334,0.00165,66059.0,66058.0,1.10291047]
[1728918686601,0.00165,66059.0,66058.0,1.17050316]
[1728918686806,0.00165,66059.0,66058.0,1.10291047]
[1728918687648,0.00165,66059.0,66058.0,1.19303729]
[1728918687856,0.00165,66059.0,66058.0,1.10291047]
[1728918688620,0.00165,66059.0,66058.0,1.17253221]
[1728918688826,0.00165,66059.0,66058.0,1.17053221]
[1728918689031,0.00165,66059.0,66058.0,1.10291047]
[1728918689291,0.00165,66059.0,66058.0,1.80291047]
[1728918689716,0.00165,66059.0,66058.0,1.8705808]
[1728918689926,0.00165,66059.0,66058.0,1.71705233]
[1728918690960,0.00165,66059.0,66058.0,1.01708241]
[1728918691772,0.00165,66059.0,66058.0,0.949382]
[1728918692133,0.00165,66059.0,66058.0,0.855282]
[1728918692557,0.00165,66059.0,66058.0,0.519]
[1728918692772,0.00165,66059.0,66058.0,0.670382]
[1728918696055,0.00165,66059.0,66058.0,0.86182975]
[1728918696257,0.00165,66059.0,66058.0,1.20253016]
[1728918696466,0.00165,66059.0,66058.0,1.28835822]
[1728918696679,0.00165,66059.0,66058.0,1.37862544]
[1728918696893,0.00165,66059.0,66058.0,1.28835822]
[1728918697328,0.00165,66059.0,66058.0,1.37872537]
[1728918697560,0.00165,66059.0,66058.0,1.28835822]
[1728918698630,0.00165,66059.0,66058.0,1.37872537]
[1728918698834,0.00165,66059.0,66058.0,1.28835822]
[1728918699048,0.00165,66059.0,66058.0,2.21183889]
[1728918699277,0.001648,66063.0,66062.0,0.45534351]
[1728918699520,0.0005,66079.0,66078.0,0.16810751]
[1728918699750,0.0005,66079.0,66078.0,0.31963598]
[1728918699962,0.0005,66079.0,66078.0,0.86023148]
[1728918700192,0.0005,66079.0,66078.0,0.95045254]
[1728918700871,0.0005,66079.0,66078.0,0.68378373]
[1728918701098,0.0005,66079.0,66078.0,0.69778373]
[1728918701312,0.0005,66079.0,66078.0,0.77938871]
[1728918701730,0.0005,66079.0,66078.0,0.71378373]
[1728918701943,0.0005,66079.0,66078.0,1.21178373]
[1728918702167,0.0005,66079.0,66078.0,1.23466038]
[1728918702392,0.0005,66079.0,66078.0,1.27971824]
[1728918702619,0.0005,66079.0,66078.0,0.867036]
[1728918702840,0.0005,66079.0,66078.0,1.04348375]
[1728918703066,0.0005,66079.0,66078.0,1.04825526]
[1728918703287,0.0005,66079.0,66078.0,1.04425526]
[1728918703510,0.0005,66079.0,66078.0,1.03025526]
[1728918703730,0.0005,66079.0,66078.0,1.03425526]
[1728918703945,0.0005,66079.0,66078.0,1.05825526]
[1728918704162,0.0005,66079.0,66078.0,1.04425526]
[1728918704383,0.0005,66079.0,66078.0,1.18378373]
[1728918704609,0.0005,66079.0,66078.0,1.64803646]
[1728918704833,0.0005,66079.0,66078.0,1.58243148]
[1728918705054,0.0005,66079.0,66078.0,1.66398307]
[1728918705254,0.0005,66079.0,66078.0,1.56843148]
[1728918705667,0.0005,66079.0,66078.0,2.26843148]
[1728918706673,0.0189017,66089.0,66088.0,0.44028451]
[1728918706915,0.0189017,66089.0,66088.0,0.77026073]
[1728918707111,0.00165,66096.0,66095.0,0.71216401]
[1728918707323,0.00165,66096.0,66095.0,0.86569248]
[1728918707499,0.00165,66096.0,66095.0,0.68724473]
[1728918707953,0.00165,66096.0,66095.0,0.68924473]
[1728918708183,0.00165,66096.0,66095.0,0.88869248]
[1728918708375,0.001652,66106.0,66095.0,0.88869248]
[1728918708376,0.001652,66106.0,66105.0,0.34249326]
[1728918708609,0.001652,66106.0,66105.0,0.49602173]
[1728918709035,0.001652,66106.0,66105.0,0.151274]
[1728918709433,0.001652,66106.0,66103.0,0.302557]
[1728918709858,0.001652,66106.0,66105.0,0.151274]
[1728918710037,0.001652,66106.0,66103.0,0.302557]
[1728918710261,0.001652,66106.0,66105.0,0.151274]
[1728918710647,0.001652,66106.0,66105.0,0.165274]
[1728918710854,0.001652,66106.0,66105.0,0.665274]
[1728918711061,0.001652,66106.0,66105.0,0.84172175]
[1728918711480,0.001652,66106.0,66105.0,0.84649326]
[1728918711904,0.001652,66106.0,66105.0,1.00002173]
[1728918712104,0.001652,66106.0,66105.0,1.01002173]
[1728918712356,0.001652,66106.0,66105.0,1.02402173]
[1728918712771,0.001652,66106.0,66105.0,1.02602173]
[1728918712982,0.001652,66106.0,66105.0,1.10552173]
[1728918713180,0.001652,66106.0,66105.0,1.10752173]
[1728918713424,0.00165,66111.0,66105.0,1.10752173]
[1728918713425,0.00165,66111.0,66110.0,0.01477151]
[1728918713635,0.00165,66111.0,66110.0,0.16803451]
[1728918713834,0.00165,66113.0,66112.0,0.26802951]
[1728918714046,0.00165,66113.0,66112.0,0.42155798]
[1728918714284,0.0005,66119.0,66118.0,0.16801551]
[1728918714490,0.0005,66119.0,66118.0,0.75043948]
[1728918714712,0.0005,66119.0,66118.0,0.87343948]
[1728918715207,0.000825,66126.0,66125.0,0.46744726]
[1728918715413,0.000825,66126.0,66125.0,0.62097573]
[1728918715641,0.000825,66126.0,66125.0,0.61897573]
[1728918715852,0.000825,66126.0,66125.0,0.62097573]
[1728918716137,0.000825,66126.0,66125.0,0.80527573]
[1728918716344,0.000825,66126.0,66125.0,1.30527573]
[1728918716559,0.000825,66126.0,66125.0,2.00527573]
[1728918716815,0.0005,66139.0,66131.0,0.29098651]
[1728918717044,0.0005,66139.0,66131.0,0.62096273]
[1728918717247,0.0005,66139.0,66131.0,0.59596273]
[1728918717915,0.0005,66139.0,66131.0,0.67664184]
[1728918718599,0.0005,66139.0,66131.0,1.37664184]
[1728918718839,0.0005,66139.0,66131.0,0.67664184]
[1728918719055,0.00014,66132.0,66131.0,0.57664184]
[1728918719492,0.00014,66132.0,66131.0,0.59064184]
[1728918719938,0.00014,66132.0,66131.0,0.165215]
[1728918720363,0.00014,66132.0,66131.0,0.184215]
[1728918720790,0.00014,66132.0,66131.0,0.179215]
[1728918721034,0.00014,66132.0,66131.0,0.33351498]
[1728918721528,0.382134,66153.0,66145.0,0.302365]
[1728918721744,0.382134,66153.0,66132.0,0.01]
[1728918721745,0.02521247,66149.0,66148.0,0.151176]
[1728918721988,0.0172537,66155.0,66148.0,0.151176]
[1728918721989,0.151163,66154.0,66149.0,0.151173]
[1728918722197,0.01704623,66150.0,66149.0,0.151173]